Cogmind - Beta 10.2 @@@ ROGUE MODE // 2021.03.31 @ 18:24:31 Player: ChromeKnight Result: Destroyed by L-31 Rogue with Katana Performance ------------- Evolutions (1) 500 Regions Visited (4) 800 Robots Destroyed (29) 145 Value Destroyed (664) 664 Prototype IDs (2) 40 Alien Tech Used (0) 0 Bonus (-214) -214 TOTAL SCORE: 1935 Bonus ------- Friendly Fire -214 Cogmind --------- Core Integrity 0/400 Matter 112/300 Energy 100/100 System Corruption 0% Temperature Cool (0) Movement Core (300) Ox5 Location -9/Mines Parts ------- > --- POWER (1) -------- (None) > --- PROPULSION (3) --- (None) > --- UTILITY (3) ------ Large Storage Unit > --- WEAPON (2) ------- (None) > --- INVENTORY (10) --- Improved Sensor Array Shock Trap Shock Trap Peak State ------------ > --- POWER ------------ Light Ion Engine > --- PROPULSION ------- Aluminum Leg Aluminum Leg Aluminum Leg > --- UTILITY ---------- Large Storage Unit Light Armor Plating Light Armor Plating > --- WEAPON ----------- EM Shotgun Rocket Launcher > --- INVENTORY -------- Aluminum Leg Improved Sensor Array EM Shotgun EM Shotgun EM Shotgun Shock Trap Shock Trap Shock Trap Shock Trap [Rating: 12] Favorites ----------- Power Light Ion Engine Engine Light Ion Engine Power Core Light Nuclear Core Propulsion Aluminum Leg Leg Aluminum Leg Utility Light Armor Plating Storage Large Storage Unit Protection Light Armor Plating Weapon Assault Rifle Energy Gun EM Shotgun Ballistic Gun Assault Rifle Launcher Grenade Launcher Build | -11 -10 -10 -9 -9 ------- Run | Scr Mat Min Mat Min Slots Evolved 2 | . . . 2 . Power . | . . . . . Propulsion 1 | . . . 1 . Utility 1 | . . . 1 . Weapon . | . . . . . Parts Attached 26 | 6 5 3 4 8 Power 5 | 1 . 1 . 3 Engine 4 | 1 . 1 . 2 Core 1 | . . . . 1 Reactor . | . . . . . Propulsion 9 | 2 2 1 2 2 Treads . | . . . . . Leg 9 | 2 2 1 2 2 Wheel . | . . . . . Hover . | . . . . . Flight . | . . . . . Utility 4 | 1 2 . 1 . Device . | . . . . . Storage 2 | 1 1 . . . Processor . | . . . . . Hackware . | . . . . . Protection 2 | . 1 . 1 . Artifact . | . . . . . Weapon 8 | 2 1 1 1 3 Energy Gun 4 | . . . 1 3 Energy Cannon . | . . . . . Ballistic Gun 2 | 2 . . . . Ballistic Cannon . | . . . . . Launcher 2 | . 1 1 . . Special Weapon . | . . . . . Impact Weapon . | . . . . . Slashing Weapon . | . . . . . Piercing Weapon . | . . . . . Special Melee Weapon . | . . . . . Unidentified Prototypes . | . . . . . Parts Lost 14 | . . . . 14 Power 2 | . . . . 2 Propulsion 5 | . . . . 5 Utility 2 | . . . . 2 Weapon 5 | . . . . 5 Highest Loss Streak 9 | . . . . 9 Average Slot Usage (%) 93 | . 97 100 87 67 Engine 12 | . 14 14 11 7 Leg 26 | . 28 28 25 20 Storage 13 | . 14 14 11 11 Protection 13 | . 11 14 17 12 Energy Gun 1 | . . . 7 8 Ballistic Gun 12 | . 19 14 3 . Launcher 10 | . 8 14 11 6 Naked Turns . | . . . . . Heaviest Build 32 | 10 27 28 32 32 Greatest Support 30 | 20 20 20 30 30 Greatest Overweight (x) 7 | 1 1 1 1 7 Average Overweight (x) . | . . 1 1 1 Largest Inventory Capacity 10 | 6 10 10 10 10 Average Capacity 8 | 5 7 10 10 10 Most Carried 10 | 1 5 10 10 10 Average Carried 6 | . 3 7 9 7 Final Capacity 10 | 6 10 10 10 10 Final Carried 10 | 1 3 10 9 3 Class Distribution -------------------- 100% | Mutant Dominant Class ---------------- Mutant | -10/Materials Mutant | -10/Mines Mutant | -9/Materials Mutant | -9/Mines Resources | -11 -10 -10 -9 -9 ----------- Run | Scr Mat Min Mat Min Matter Collected 542 | 260 173 84 18 7 Remotely . | . . . . . Salvage Created 664 | . 224 87 59 294 Parts 51 | . 16 11 5 19 Haulers Intercepted . | . . . . . Recyclers Shooed 2 | . . 2 . . Parts Field Recycled . | . . . . . Retrieved Matter . | . . . . . Parts Self-Destructed . | . . . . . Prevented . | . . . . . Kills | -11 -10 -10 -9 -9 ------- Run | Scr Mat Min Mat Min Combat Hostiles Destroyed 38 | . 6 5 5 22 Guns 2 | . 2 . . . AOE 35 | . 4 5 5 21 Classes Destroyed 8 | . 3 1 1 3 Builder 3 | . 2 . . 1 Recycler 1 | . . . . 1 Mechanic 1 | . . . 1 . Watcher 1 | . 1 . . . Swarmer 9 | . . 3 3 3 Grunt 13 | . 6 2 2 3 Assembled 16 | . . . . 16 Guerrilla 1 | . . . . 1 Best Kill Streak 18 | . 4 3 6 18 Combat Bots Only 16 | . 2 3 5 16 Max Kills in Single Turn 6 | . 2 3 3 6 Gunslinging . | . . . . . Exploded 5 | . 1 3 3 5 Melee . | . . . . . Uniques/NPCs Destroyed . | . . . . . Combat | -11 -10 -10 -9 -9 -------- Run | Scr Mat Min Mat Min Damage Taken 1922 | . 302 50 232 1338 Core 464 | . 36 13 21 394 Absorbed by Shields . | . . . . . Core Remaining (%) 90 | 100 . 80 . . Volleys Fired 46 | . 23 3 5 15 Largest 2 | . 2 2 2 2 Hottest 90 | . 50 50 78 90 Shots Fired 77 | . 44 4 10 19 Gun 53 | . 37 1 5 10 Cannon . | . . . . . Launcher 24 | . 7 3 5 9 Special . | . . . . . Kinetic 38 | . 37 1 . . Thermal . | . . . . . Explosive 24 | . 7 3 5 9 Electromagnetic 15 | . . . 5 10 Robot Hit Streak 13 | . 6 1 4 13 Robot Miss Streak 3 | . 3 2 2 1 Penetration Max . | . . . . . Secondary Targets 1 | . 1 . . . Max Gunslinging Chain 1 | . 1 . . . Shots Hit Robots 51 | . 27 1 8 15 Core Hits 95 | . 18 10 13 54 Critical Hits . | . . . . . Critical Kills . | . . . . . Critical Parts Destroyed . | . . . . . Melee Attacks . | . . . . . Impact . | . . . . . Slashing . | . . . . . Piercing . | . . . . . Sneak Attacks . | . . . . . Combat Hostiles . | . . . . . Follow-up Attacks . | . . . . . Damage Inflicted 3413 | . 668 313 460 1972 Guns 414 | . 231 10 65 108 Cannons . | . . . . . Explosions 2995 | . 437 299 395 1864 Melee . | . . . . . Ramming 4 | . . 4 . . Kinetic 241 | . 231 10 . . Thermal 199 | . . 40 . 159 Explosive 2796 | . 437 259 395 1705 Electromagnetic 173 | . . . 65 108 Impact . | . . . . . Slashing . | . . . . . Piercing . | . . . . . Highest Corruption . | . . . . . Average Corruption . | . . . . . Corruption Purged . | . . . . . Overload Shots . | . . . . . Overflow Damage 143 | . 35 . 5 103 Projectiles . | . . . . . Explosions 143 | . 35 . 5 103 Melee . | . . . . . Knockbacks . | . . . . . Impact . | . . . . . Kinetic . | . . . . . Secondary . | . . . . . Self-Inflicted Damage 293 | . 42 14 33 204 Shots 11 | . 2 1 2 6 Rammed 1 | . . 1 . . Targets Rammed 1 | . . 1 . . Kicked . | . . . . . Crushed . | . . . . . Highest Temperature 195 | . 15 8 195 39 Average Temperature 48 | . 7 7 102 24 Received Heat Transfer 523 | . 138 18 84 283 Siege Activations . | . . . . . Robots Corrupted 1 | . . . . 1 Combat Hostiles 1 | . . . . 1 Parts Fried . | . . . . . Impact Corruptions . | . . . . . Robots Melted . | . . . . . Combat Hostiles . | . . . . . Parts Melted . | . . . . . Heat Transferred 150 | . . 50 . 100 Parts Sabotaged . | . . . . . Parts Stolen . | . . . . . Parts Stripped . | . . . . . Power Chain Reactions 2 | . . . . 2 Missiles Intercepted . | . . . . . Alert | -11 -10 -10 -9 -9 ------- Run | Scr Mat Min Mat Min Peak Influence 186 | . 117 93 186 142 Initial 72 | . . 23 25 72 Average 62 | . 68 52 48 102 Maximum Alert Level . | . . . . . Low Security (%) 100 | 100 100 100 100 100 Level 1 . | . . . . . Level 2 . | . . . . . Level 3 . | . . . . . Level 4 . | . . . . . Level 5 . | . . . . . High Security . | . . . . . Max Security . | . . . . . Squads Dispatched 1 | . 1 . . . Investigation 1 | . 1 . . . Extermination . | . . . . . Reinforcement . | . . . . . Assault . | . . . . . Garrison . | . . . . . Intercept . | . . . . . Construction Impeded . | . . . . . Haulers Reinforced . | . . . . . Stealth | -11 -10 -10 -9 -9 --------- Run | Scr Mat Min Mat Min Distress Signals 1 | . . . 1 . Communications Jammed . | . . . . . Distress Signals . | . . . . . Times Spotted 56 | . 9 5 8 34 Peak Tracking Total 15 | . 3 3 5 15 Tactical Retreats 4 | . 1 . . 3 Traps | -11 -10 -10 -9 -9 ------- Run | Scr Mat Min Mat Min Traps Triggered 1 | . 1 . . . Indirectly . | . . . . . Trap Hack Attempts . | . . . . . Triggered . | . . . . . Disarmed . | . . . . . Reprogrammed . | . . . . . Reused 2 | . . . . 2 Traps Extracted . | . . . . . Installed 2 | . . . . 2 Triggered 2 | . . . . 2 Machines | -11 -10 -10 -9 -9 ---------- Run | Scr Mat Min Mat Min Machines Disabled 3 | . . 1 1 1 Max in Single Turn 1 | . . 1 1 1 Machines Sabotaged . | . . . . . Garrisons Compromised . | . . . . . Overloaded Fab Kills . | . . . . . Fab Network Shutdowns . | . . . . . Hacking | -11 -10 -10 -9 -9 --------- Run | Scr Mat Min Mat Min Machines Accessed 5 | . 2 . 3 . Terminals 5 | . 2 . 3 . Fabricators . | . . . . . Repair Stations . | . . . . . Recycling Units . | . . . . . Scanalyzers . | . . . . . Garrison Access . | . . . . . Total Hacks 15 | . 6 . 9 . Successful 5 | . 2 . 3 . Failed 10 | . 4 . 6 . Catastrophic 1 | . . . 1 . Database Lockouts . | . . . . . Manual 11 | . 5 . 6 . Terminals 15 | . 6 . 9 . Fabricators . | . . . . . Repair Stations . | . . . . . Recycling Units . | . . . . . Scanalyzers . | . . . . . Garrison Access . | . . . . . Terminal Hacks 5 | . 2 . 3 . Record 1 | . 1 . . . Robot Analysis 3 | . 1 . 2 . Prototype ID Bank 1 | . . . 1 . Fabricator Hacks . | . . . . . Repair Station Hacks . | . . . . . Recycling Unit Hacks . | . . . . . Scanalyzer . | . . . . . Garrison Access Hacks . | . . . . . Unauthorized Hacks . | . . . . . Terminals . | . . . . . Fabricators . | . . . . . Repair Stations . | . . . . . Recycling Units . | . . . . . Scanalyzers . | . . . . . Garrison Access . | . . . . . Data Cores Recovered . | . . . . . Used . | . . . . . Hacking Detections 5 | . 2 . 3 . Full Trace Events 1 | . 1 . . . Feedback Events . | . . . . . Feedback Blocked . | . . . . . Robot Schematics Acquired . | . . . . . Robots Built . | . . . . . Matter . | . . . . . Time . | . . . . . Total Robot Build Rating . | . . . . . Part Schematics Acquired . | . . . . . Parts Built . | . . . . . Matter . | . . . . . Time . | . . . . . Total Part Build Rating . | . . . . . Parts Repaired . | . . . . . Time . | . . . . . Parts Recycled . | . . . . . Recycled Matter . | . . . . . Retrieved Matter . | . . . . . Retrieved Components . | . . . . . Parts Scanalyzed . | . . . . . Part Schematics Acquired . | . . . . . Parts Damaged . | . . . . . Bothacking | -11 -10 -10 -9 -9 ------------ Run | Scr Mat Min Mat Min Used RIF Installer . | . . . . . Robots Hacked . | . . . . . Non-combat . | . . . . . Combat . | . . . . . Robot Hacks Applied . | . . . . . Relay Couplers Released . | . . . . . Robots Rewired . | . . . . . Allies Hacked . | . . . . . Hacks Repelled . | . . . . . Allies | -11 -10 -10 -9 -9 -------- Run | Scr Mat Min Mat Min Total Allies 2 | . . . . 2 Largest Group 2 | . . . . 2 Highest-Rated Group 45 | . . . . 45 Highest-Rated Ally 31 | . . . . 31 Total Orders . | . . . . . Ally Attacks 1 | . . . . 1 Total Damage 22 | . . . . 22 Kills . | . . . . . Allies Corrupted . | . . . . . Allies Melted . | . . . . . Intel | -11 -10 -10 -9 -9 ------- Run | Scr Mat Min Mat Min Robot Analysis Total 3 | . 1 . 2 . Derelict Logs Recovered 2 | . . 2 . . Drone Launches . | . . . . . Drone Recoveries . | . . . . . Exploration | -11 -10 -10 -9 -9 ------------- Run | Scr Mat Min Mat Min Turns Passed 1574 | 64 497 648 145 220 Spaces Moved 978 | 49 326 421 80 102 Core 25 | 15 . . . 10 Treads . | . . . . . Legs 953 | 34 326 421 80 92 Wheels . | . . . . . Hover . | . . . . . Flight . | . . . . . Fastest Speed 50 | 50 120 150 150 120 Average Speed 143 | 110 129 150 150 167 Slowest Speed 400 | 120 150 150 150 400 Overloaded Moves . | . . . . . Propulsion Burnouts . | . . . . . Robots Hopped . | . . . . . Cave-ins Triggered . | . . . . . Exploration Rate (%) 39 | 3 42 96 15 39 Regions Visited 4 Branch Regions 2 Pre-discovered Areas 1 | . . 1 . . Known Exits Taken . | . . . . . Unknown Exits Taken 4 | 1 1 1 1 . Scrap Searched 1 | . . 1 . . Spaces Dug . | . . . . . Terrain Destroyed 172 | . 20 34 35 83 Melee . | . . . . . Projectile . | . . . . . AOE 172 | . 20 34 35 83 Terrain Rammed . | . . . . . Walls Destroyed . | . . . . . Machines Disabled . | . . . . . Actions | -11 -10 -10 -9 -9 --------- Run | Scr Mat Min Mat Min Total 1078 | 55 359 432 99 133 Wait 3 | . . . . 3 Move 974 | 48 325 420 79 102 Hop . | . . . . . Pick Up 13 | 1 2 5 5 . Fast Attach 12 | 6 2 . 2 2 Attach 6 | . . . 1 5 Detach . | . . . . . Swap 8 | . 3 3 1 1 Drop 13 | . 4 . 6 3 Fire 46 | . 23 3 5 15 Melee . | . . . . . Ram . | . . . . . Kick 1 | . . 1 . . Crush . | . . . . . Escape Stasis . | . . . . . Rewire . | . . . . . Trap 2 | . . . . 2 Miscellaneous . | . . . . . Route ------- -11/Scrapyard -10/Materials -10/Mines (discovered 2 exits: *Mat x2) -9/Materials (discovered 2 exits: Mat / [*Min]) -9/Mines (discovered 2 exits: *Mat x2) History --------- Turn | Location | Event 2 | -11/Scrapyard | Met Revision 17 11 | -11/Scrapyard | Discovered new exit (range 16) 65 | -11/Scrapyard | Entered Materials 175 | -10/Materials | Discovered new exit (range 7) 317 | -10/Materials | Build established: Mutant 562 | -10/Materials | Entered Mines 616 | -10/Mines | Found a hidden stash of uninstalled traps 710 | -10/Mines | Discovered new exit (range 12) 893 | -10/Mines | Learned location of Storage (-9) 980 | -10/Mines | Received a Rocket Launcher from a helpful Derelict 1131 | -10/Mines | Learned location of 1 exit from Materials 1147 | -10/Mines | Learned Materials security intel 1192 | -10/Mines | Discovered new exit (range 9) 1210 | -10/Mines | Entered Materials 1210 | -9/Materials | Evolved 2 slots: Propulsion x1, Utility x1 1211 | -9/Materials | Identified exit to Materials 1336 | -9/Materials | Discovered new exit (range 13) 1355 | -9/Materials | Entered Mines 1407 | -9/Mines | Discovered exit to Materials (range 15) 1463 | -9/Mines | Assembled infested the area 1468 | -9/Mines | Assisted by a Guerilla fighting off Assembled 1505 | -9/Mines | Destroyed 16 combat bots 1512 | -9/Mines | Core integrity fell below 50% 1527 | -9/Mines | Lost 9 parts (1p4n2u2w) 1541 | -9/Mines | Discovered exit to Materials (range 16) 1568 | -9/Mines | Core integrity fell below 20% 1575 | -9/Mines | Destroyed by L-31 Rogue with Katana Last Messages --------------- 01513_ G-34 Mercenary triggered Shock Trap. 01513_ The floor emits a surge of raw power. 01513_ G-47 Trooper triggered Shock Trap. 01513_ The floor emits a surge of raw power. 01518_ G-47 Trooper system terminally corrupted. 01520_ The unstable cave ceiling collapses. 01527_ Chain reaction triggered in Ion Engine. 01527_ G-34 Mercenary destroyed. 01527_ EM Shotgun destroyed. 01534_ Acquired Aluminum Leg. 01537_ Dropped Lgt. Ion Engine. 01538_ Acquired Lgt. Nuclear Core. 01541_ EXIT=FOUND: MATERIALS 01549_ EM Shotgun destroyed. 01551_ Lgt. Nuclear Core destroyed. 01559_ Chain reaction triggered in Imp. Ion Engine. 01559_ Aluminum Leg destroyed. 01559_ Destroyed Aluminum Leg. 01559_ Laser Drill disabled. 01563_ EM Shotgun destroyed. Map ----- +----------------------------------------------------+ | ??????????????????????????## # | | ????????????????????????### ## | | ???????????????????????## ## | | ??????????????????????## # | | ???????????????????#### # | | ???????????????????# ## | | ???????????????????# ##? | | ???????????????????# ##?? | | ???????????????????### ####??? | | ?????????????????????##### ##????? | | ????????????????????????## #???## | | ???????????????????????## #??# | | ???????????????????????# #?# | | ???????????????????????# % ## | | ????????????????????????# | | ????????????????????????# | | ????????????????????????# | | ????????????????????????# * [ | | ????????????????????????# = | | ????????????????????????# ] | | ??????????????????# ###### | | ??????????????????? # # # | | ????????????????????### # = # | | ??###################*;%; ! # | | ??# s %=!# ### | | ??# < @ s######""%! # ##?? | | ??# """ "l ##???#### #??? | | ??# """ " ;#??????# # #?? | | ??# """ " g ;#??????# #?? | | ??# ;#??????# #?? | | ??# s ;#??????# ##?? | | ??############## ????# #??? | | ???????????????? ?# ## ##??? | | ?????????????????""" ? #???? | | ??????????????????"" ###?## #???? | | ?????????????????????#?????? #???? | | ???????????????????????????? #???? | | ???????????????????????????? ???? | | ????????????????????????????? ????? | | ??????????????????????????????????? | | ??????????????????????????????????? | | ??????????????????????????????????? | | ??????????????????????????????????? | | ??????????????????????????????????? | | ??????????????????????????????????? | | ??????????????????????????????????? | | ??????????????????????????????????? | | ??????????????????????????????????? | | ??????????????????????????????????? | | ??????????????????????????????????? | +----------------------------------------------------+ Best States ------------- Heat Dissipation 28 Energy Generation 14 Energy Capacity 160 Matter Stores 300 Matter Capacity 300 Sight Range 16 Terrain Scan Density 10 Armor Coverage 300 Evasion (%) 40 Item Schematics ----------------- None Robot Schematics ------------------ None Fabricated ------------ Nothing Alien Tech Used ----------------- None Achievements -------------- Exterminator Challenges ------------ None Game ------ Seed LightningHelicalDesublimator Manual? 0 Play Time 00:14:56 Cumulative 109.5 hours Start 2021.03.31 @ 17:54:09 End 2021.03.31 @ 18:24:31 Sessions 1 Manual Loads 0 Difficulty Rogue Special Mode None Game No. 265 Rogue 112 Adventurer 148 Explorer 5 Win Type - Total 1 Types 1/0/0/0/0/0/0/0/0 Lore% 60 Gallery% 69 Achievement% 54 Wizard Run 0 Options --------- ASCII 0 Keyboard 0 Movement Numpad Keybinds 0 Fullscreen 1 Font 14/X11 Map View 84x54 Tactical HUD 1 Map Filters NONE Filters NONE Steam 1 RUN: c434be1f-5c8f-4f58-8088-bb304ecc48ba